Cogmind - Beta 17 @@@ ROGUE MODE // 2026.07.09 @ 20:06:30 Player: IsAway Result: Destroyed by Y-45 Defender with Heavy Assault Rifle Performance ------------- Evolutions (0) 0 Regions Visited (3) 600 Robots Destroyed (13) 65 Value Destroyed (167) 167 Prototype IDs (1) 20 Alien Tech Used (0) 0 Bonus (30) 30 TOTAL SCORE: 882 Bonus ------- Follower Combat Kills 30 Cogmind --------- Core Integrity 0/250 Matter 285/300 Energy 120/140 System Corruption 0% Temperature Cool (27) Movement Rolling (110) Location -10/Subcaves Parts ------- > --- POWER (1) -------- Light Deuterium Engine > --- PROPULSION (2) --- Subdweller Monowheel Subdweller Monowheel > --- UTILITY (2) ------ Small Storage Unit > --- WEAPON (2) ------- Barrage Gun Axe > --- INVENTORY (8) ---- Compact Battery (200) Experimental Sensor Array Actuator Array Splice Drone Bay (5/6) Subdweller Shrapnel Launcher Mining Laser Scrap Shield Fragment (45) Peak State ------------ > --- POWER ------------ Light Deuterium Engine > --- PROPULSION ------- Wheel Subdweller Monowheel > --- UTILITY ---------- Small Storage Unit Splice Drone Bay > --- WEAPON ----------- Subdweller Laser Axe > --- INVENTORY -------- Compact Battery Experimental Sensor Array Actuator Array Reaction Control System Mining Laser Scrap Shield Fragment [Rating: 21] Favorites ----------- Power Light Deuterium Engine Engine Light Deuterium Engine Propulsion Flight Unit Wheel Subdweller Monowheel Flight Unit Flight Unit Utility Small Storage Unit Device Seismic Detector Storage Small Storage Unit Processor Signal Interpreter Weapon Mining Laser Energy Gun Small Laser Launcher Rocket Launcher Special Weapon Mining Laser Slashing Weapon Axe Build | -11 -10 -10 -10 ------- Run | Yrd Mat Min Sub Slots Evolved . | . . . . Power . | . . . . Propulsion . | . . . . Utility . | . . . . Weapon . | . . . . Parts Attached 24 | 7 3 9 5 Power 3 | 1 . 2 . Engine 3 | 1 . 2 . Core . | . . . . Reactor . | . . . . Propulsion 9 | 2 2 2 3 Treads . | . . . . Leg . | . . . . Wheel 5 | 2 . . 3 Hover . | . . . . Flight 4 | . 2 2 . Utility 4 | 2 . 2 . Device 2 | 1 . 1 . Storage 1 | 1 . . . Processor 1 | . . 1 . Hackware . | . . . . Protection . | . . . . Artifact . | . . . . Weapon 8 | 2 1 3 2 Energy Gun 3 | 2 . . 1 Energy Cannon . | . . . . Ballistic Gun 1 | . . . 1 Ballistic Cannon . | . . . . Launcher 1 | . . 1 . Special Weapon 2 | . 1 1 . Impact Weapon . | . . . . Slashing Weapon 1 | . . 1 . Piercing Weapon . | . . . . Special Melee Weapon . | . . . . Unidentified Prototypes 1 | . . 1 . Parts Lost 4 | . . . 4 Power . | . . . . Propulsion 2 | . . . 2 Utility . | . . . . Weapon 2 | . . . 2 Highest Loss Streak 3 | . . . 3 To Critical Strikes . | . . . . Average Backups 6 | 1 6 7 6 Power . | . 1 1 . Propulsion 1 | 1 1 1 . Utility 3 | . . 2 4 Weapon 1 | . 1 1 2 Tool/Special . | . . . . Unused Backups 14 | . 3 3 8 Power . | . . . . Propulsion 5 | . 3 2 . Utility 5 | . . 1 4 Weapon 4 | . . . 4 Tool/Special . | . . . . Average Slot Usage (%) 81 | . 75 85 79 Engine 5 | . 5 3 8 Wheel 8 | . 5 . 18 Flight 16 | . 18 28 4 Device 6 | . 14 9 1 Storage 13 | . 14 13 14 Processor 4 | . . 5 5 Energy Gun 10 | . 5 10 12 Special Weapon 8 | . 12 13 1 Slashing Weapon 5 | . . . 12 Peak Build Rating 21 | 7 7 13 21 Average Rating 9 | 5 5 7 13 On Entrance 5 | . 6 5 9 Avg Prop Armor Cover (%) 9 | . . 8 19 Naked Turns . | . . . . Heaviest Build 25 | 13 13 14 25 Greatest Support 40 | 26 10 8 40 Greatest Overweight (x) 4 | 1 1 4 3 Average Overweight (x) . | . . . . Largest Inventory Capacity 8 | 8 8 8 8 Average Capacity 7 | 7 8 7 8 Most Carried 8 | 5 8 8 8 Average Carried 7 | 1 6 7 7 Final Capacity 8 | 8 8 8 8 Final Carried 8 | 5 7 8 7 Class Distribution -------------------- 66% | Mutant 33% | Scavenger-Mutant Dominant Class ---------------- Scavenger-Mutant | -10/Materials Scavenger-Mutant | -10/Mines Mutant | -10/Subcaves Resources | -11 -10 -10 -10 ----------- Run | Yrd Mat Min Sub Matter Collected 612 | 270 7 94 241 Remotely . | . . . . Salvage Created 255 | 110 55 57 33 Parts 21 | 8 4 8 1 Haulers Intercepted . | . . . . Recyclers Shooed 1 | . 1 . . Parts Field Recycled . | . . . . Retrieved Matter . | . . . . Parts Self-Destructed 3 | . . . 3 Prevented . | . . . . Parts Restored . | . . . . Kills | -11 -10 -10 -10 ------- Run | Yrd Mat Min Sub Combat Hostiles Destroyed 8 | . 2 4 2 Melee 2 | . . . 2 Guns 2 | . 1 1 . Cannons 3 | . 1 2 . AOE 1 | . . 1 . Classes Destroyed 5 | 2 1 1 1 Worker 1 | . . 1 . Tunneler 2 | 2 . . . Recycler 2 | 1 1 . . Swarmer 6 | . 2 4 . Subdweller 2 | . . . 2 Best Kill Streak 2 | 2 2 2 2 Combat Bots Only 2 | . 1 2 2 Max Kills in Single Turn 2 | 1 1 2 1 Gunslinging . | . . . . Exploded 1 | . . 1 . Melee 1 | . . . 1 Uniques/NPCs Destroyed . | . . . . Combat | -11 -10 -10 -10 -------- Run | Yrd Mat Min Sub Hostile Shots Fired 38 | . 8 9 21 Missed 9 | . 5 2 2 Hits 29 | . 3 7 19 Projectile 29 | . 3 7 19 AOE 1 | . . . 1 Critical Strikes 1 | . . . 1 Damage Taken 624 | . 27 59 538 Core 254 | . 8 25 221 Absorbed by Shields . | . . . . Regen/Repaired (Parts) 22 | . 22 . . Core Remaining (%) 100 | 100 . . . Volleys Fired 35 | 8 14 6 7 Largest 2 | 2 2 2 1 Hottest 140 | 80 140 120 100 Shots Fired 50 | 16 18 9 7 Gun 28 | 16 8 3 1 Cannon . | . . . . Launcher 5 | . . 1 4 Special 17 | . 10 5 2 Kinetic . | . . . . Thermal 45 | 16 18 8 3 Explosive 5 | . . 1 4 Electromagnetic . | . . . . Robot Hit Streak 5 | 5 3 3 4 Robot Miss Streak 4 | 1 4 1 . Penetration Max . | . . . . Secondary Targets . | . . . . Shots Hit Robots 28 | 12 4 4 8 Core Hits 15 | 4 3 5 3 Critical Kills . | . . . . Critical Parts Destroyed . | . . . . Critical Strikes . | . . . . Melee Attacks 12 | . . . 12 Impact . | . . . . Slashing 12 | . . . 12 Piercing . | . . . . Sneak Attacks . | . . . . Combat Hostiles . | . . . . Follow-up Attacks . | . . . . Damage Inflicted 805 | 133 74 135 463 Guns 166 | 133 22 11 . Cannons . | . . . . Explosions 391 | . . 98 293 Melee 170 | . . . 170 Ramming 6 | . 4 2 . Kinetic . | . . . . Thermal 238 | 133 70 35 . Explosive 391 | . . 98 293 Electromagnetic . | . . . . Impact . | . . . . Slashing 170 | . . . 170 Piercing . | . . . . Highest Corruption . | . . . . Average Corruption . | . . . . Corruption Purged . | . . . . Corruption Blocked . | . . . . Overload Shots . | . . . . Overflow Damage 99 | . . 47 52 Projectiles . | . . . . Explosions 99 | . . 47 52 Melee . | . . . . Knockbacks . | . . . . Impact . | . . . . Kinetic . | . . . . Secondary . | . . . . Self-Inflicted Damage 89 | . 2 1 86 Shots 2 | . . . 2 Rammed 2 | . 1 1 . Targets Rammed 2 | . 1 1 . Kicked . | . . . . Crushed . | . . . . Highest Temperature 100 | 54 100 60 . Average Temperature 32 | 25 39 21 . Received Heat Transfer 135 | . . . 135 Siege Activations . | . . . . Martial Activations . | . . . . Shielding Activations . | . . . . Robots Disrupted . | . . . . Combat Hostiles . | . . . . Robots Corrupted . | . . . . Combat Hostiles . | . . . . Parts Fried . | . . . . Impact Corruptions . | . . . . Robots Melted . | . . . . Combat Hostiles . | . . . . Parts Melted . | . . . . Heat Transferred 635 | 300 150 185 . Parts Sabotaged . | . . . . Parts Stolen . | . . . . Parts Stripped . | . . . . Power Chain Reactions . | . . . . Alert | -11 -10 -10 -10 ------- Run | Yrd Mat Min Sub Maximum Alert Level . | . . . . Low Security (%) 100 | 100 100 100 . Level 1 . | . . . . Level 2 . | . . . . Level 3 . | . . . . Level 4 . | . . . . Level 5 . | . . . . High Security . | . . . . Max Security . | . . . . Peak Influence 81 | 10 81 65 . Initial 4 | . . 4 . Average 17 | 1 44 12 . Influence Increases 317 | 15 106 166 30 Destroy 0b10 Robot/C 120 | . 40 80 . Destroy 0b10 Robot/NC 25 | 15 5 5 . Destroy Leader 20 | . 10 10 . Destroy Structure 17 | . 6 11 . Lose Combat Pursuer 135 | . 45 60 30 Influence Decreases 317 | 15 93 153 56 Entered New Map 23 | . . 9 14 Time Decay 274 | 15 93 144 22 Lost Part 20 | . . . 20 Squads Dispatched 1 | . 1 . . Investigation . | . . . . Extermination . | . . . . Reinforcement 1 | . 1 . . Assault . | . . . . Garrison . | . . . . Intercept . | . . . . Searches Triggered . | . . . . Construction Impeded . | . . . . Haulers Reinforced . | . . . . Active Scanning Responses . | . . . . Cargo Convoy Interrupts . | . . . . Stealth | -11 -10 -10 -10 --------- Run | Yrd Mat Min Sub Distress Signals 1 | . 1 . . Communications Jammed . | . . . . Distress Signals . | . . . . Times Spotted 23 | . 6 7 10 Peak Tracking Total 5 | . 3 3 5 Tactical Retreats 6 | . 2 3 1 Traps | -11 -10 -10 -10 ------- Run | Yrd Mat Min Sub Traps Triggered . | . . . . Indirectly . | . . . . Trap Hack Attempts . | . . . . Triggered . | . . . . Disarmed . | . . . . Reprogrammed . | . . . . Reused . | . . . . Traps Extracted . | . . . . Installed . | . . . . Triggered . | . . . . Machines | -11 -10 -10 -10 ---------- Run | Yrd Mat Min Sub Machines Disabled . | . . . . Max in Single Turn . | . . . . Machines Repaired . | . . . . Machines Dismantled . | . . . . Machines Sabotaged . | . . . . Overloaded Fab Kills . | . . . . Hacking | -11 -10 -10 -10 --------- Run | Yrd Mat Min Sub Machines Accessed 4 | . 2 2 . Terminals . | . . . . Fabricators . | . . . . Repair Stations 1 | . 1 . . Recycling Units 1 | . 1 . . Scanalyzers . | . . . . Garrison Access . | . . . . Total Hacks 6 | . 4 2 . Successful 5 | . 3 2 . Failed 1 | . 1 . . Catastrophic . | . . . . Database Lockouts . | . . . . Manual . | . . . . Terminals . | . . . . Fabricators . | . . . . Repair Stations 3 | . 3 . . Recycling Units 1 | . 1 . . Scanalyzers . | . . . . Garrison Access . | . . . . Terminal Hacks 2 | . . 2 . Open Door 2 | . . 2 . Fabricator Hacks . | . . . . Repair Station Hacks 2 | . 2 . . Scan Component 1 | . 1 . . Repair 1 | . 1 . . Recycling Unit Hacks 1 | . 1 . . Retrieve Components 1 | . 1 . . Scanalyzer . | . . . . Garrison Access Hacks . | . . . . Unauthorized Hacks . | . . . . Terminals . | . . . . Fabricators . | . . . . Repair Stations . | . . . . Recycling Units . | . . . . Scanalyzers . | . . . . Garrison Access . | . . . . Data Cores Recovered . | . . . . Used . | . . . . Hacking Detections . | . . . . Full Trace Events . | . . . . Feedback Events . | . . . . Feedback Blocked . | . . . . Robot Schematics Acquired . | . . . . Robots Built . | . . . . Authchips . | . . . . Time . | . . . . Total Robot Build Rating . | . . . . Part Schematics Acquired . | . . . . Parts Built . | . . . . Authchips . | . . . . Time . | . . . . Total Part Build Rating . | . . . . Part Studies Acquired . | . . . . Parts Repaired 1 | . 1 . . Time 26 | . 26 . . Parts Recycled . | . . . . Recycled Matter . | . . . . Retrieved Matter . | . . . . Retrieved Components 2 | . 2 . . Parts Scanalyzed . | . . . . Part Schematics Acquired . | . . . . Parts Damaged . | . . . . Bothacking | -11 -10 -10 -10 ------------ Run | Yrd Mat Min Sub Used RIF Installer . | . . . . Robots Hacked . | . . . . Non-combat . | . . . . Combat . | . . . . Robot Hacks Applied . | . . . . Relay Couplers Released . | . . . . Fabnet Peak Effective % . | . . . . Robots Rewired . | . . . . Allies Hacked . | . . . . Hacks Repelled . | . . . . Allies | -11 -10 -10 -10 -------- Run | Yrd Mat Min Sub Total Allies . | . . . . Largest Group . | . . . . Highest-Rated Group . | . . . . Highest-Rated Ally . | . . . . Total Orders 4 | . . . 4 RETURN 4 | . . . 4 Ally Attacks 18 | . . . 18 Total Damage 71 | . . . 71 Kills 1 | . . . 1 Allies Corrupted . | . . . . Allies Melted . | . . . . Intel | -11 -10 -10 -10 ------- Run | Yrd Mat Min Sub Active Infowar (turns) 725 | 48 206 471 . Seismic 725 | 48 206 471 . Robot Analysis Total . | . . . . Derelict Logs Recovered 2 | . . 1 1 Drone Launches 20 | . . . 20 Drone Recoveries 19 | . . . 19 Exploration | -11 -10 -10 -10 ------------- Run | Yrd Mat Min Sub Turns Passed 1717 | 110 206 735 666 Spaces Moved 1457 | 70 173 729 485 Core 76 | 1 . 50 25 Treads . | . . . . Legs . | . . . . Wheels 478 | 69 18 . 391 Hover . | . . . . Flight 903 | . 155 679 69 Fastest Speed 37 | 50 37 37 37 Average Speed 65 | 91 43 48 95 Slowest Speed 250 | 95 95 250 200 Overloaded Moves . | . . . . Propulsion Burnouts . | . . . . Robots Hopped 4 | . . 4 . Potential Cave-ins . | . . . . Cave-ins Triggered . | . . . . Exploration Rate (%) 39 | 3 30 99 27 Regions Visited 3 Branch Regions 2 Pre-discovered Areas 2 | . . 2 . Known Exits Taken 1 | . . 1 . Unknown Exits Taken 2 | 1 1 . . Scrap Searched 3 | . . 1 2 Spaces Dug 13 | . 6 2 5 Terrain Destroyed 64 | . 7 12 45 Melee 5 | . . . 5 Projectile 9 | . 7 2 . AOE 50 | . . 10 40 Terrain Rammed . | . . . . Walls Destroyed . | . . . . Machines Disabled . | . . . . Actions | -11 -10 -10 -10 --------- Run | Yrd Mat Min Sub Total 2113 | 97 267 1092 657 Wait 502 | 7 65 311 119 Move 1446 | 69 172 720 485 Hop 4 | . . 4 . Pick Up 35 | 5 4 16 10 Fast Attach 14 | 7 2 1 4 Attach 12 | . 1 7 4 Detach 8 | . 3 4 1 Swap 14 | . 1 9 4 Drop 29 | 1 4 13 11 Fire 35 | 8 14 6 7 Melee 12 | . . . 12 Ram 2 | . 1 1 . Kick . | . . . . Crush . | . . . . Escape Stasis . | . . . . Rewire . | . . . . Trap . | . . . . Miscellaneous . | . . . . Route ------- -11/Scrapyard -10/Materials -10/Mines (discovered 3 exits: *Mat x2 / *Sub) -10/Subcaves (discovered 1 exit: Mat) History --------- Turn | Location | Event 17 | -11/Scrapyard | Discovered new exit (range 15) 111 | -11/Scrapyard | Entered Materials 217 | -10/Materials | Repaired Mining Laser 314 | -10/Materials | Discovered new exit (range 7) 317 | -10/Materials | Entered Mines 318 | -10/Mines | Learned location of Storage (-7) 481 | -10/Mines | A weapon hastily lodged in a ceiling crevice suddenly fell to the ground 544 | -10/Mines | Build established: Scavenger-Mutant 684 | -10/Mines | Discovered new exit (range 5) 752 | -10/Mines | Found a damaged Exp. Sensor Array with a note attached 753 | -10/Mines | Found Prototype Device 785 | -10/Mines | Learned location of Zion (-7) 786 | -10/Mines | Discovered new exit (range 6) 789 | -10/Mines | Identified exit to Materials 795 | -10/Mines | Found the Drone Emporium 845 | -10/Mines | Found Prototype Device 862 | -10/Mines | Received a Rocket Launcher from a helpful Derelict 895 | -10/Mines | Met a Derelict who couldn't figure out how to use a Trap Extractor 899 | -10/Mines | Identified Splice Drone Bay 1028 | -10/Mines | Discovered new exit (range 13) 1032 | -10/Mines | Identified exit to Subcaves 1052 | -10/Mines | Entered Subcaves 1053 | -10/Subcaves | Approached by a straggling Scientist 1075 | -10/Subcaves | Build established: Mutant 1147 | -10/Subcaves | Ambushed by Subdweller buried in earth 1147 | -10/Subcaves | Ambushed by Subdweller buried in earth 1154 | -10/Subcaves | Core integrity fell below 50% 1157 | -10/Subcaves | Core integrity fell below 20% 1182 | -10/Subcaves | Lost 3 parts (2n1w) 1459 | -10/Subcaves | Identified exit to Materials 1532 | -10/Subcaves | Shifting Twisted Machinery released Sub. Monowheel 1534 | -10/Subcaves | Shifting Twisted Machinery released Barrage Gun 1690 | -10/Subcaves | A swath of the cavern ceiling suddenly collapsed 1718 | -10/Subcaves | Destroyed by Y-45 Defender with Heavy Assault Rifle Last Messages --------------- Dropped Sub. Monowheel. Dropped Wheel. Acquired Sub. Monowheel. Dropped Mining Laser. Acquired Barrage Gun. Dropped Sub. Machine Gun. Acquired Mining Laser. Acquired 20 matter. Dropped Riot Gun. Acquired Sub. Shrapnel Launcher. Dropped Scrap Shield Fragment. Acquired Scrap Shield Fragment. Y-45 Defender crushed by falling debris. A swath of the cavern ceiling suddenly collapses. Dropped Sub. Laser. Dropped Scrap Shield Fragment. Acquired Sub. Laser. Acquired Scrap Shield Fragment. Sub. Laser destroyed. Critical hit (Burn: +37). Map ----- +----------------------------------------------------+ | ?????????????????????????????????????????????????? | | ?????????????????????????????????????????????????? | | ?????????????????????????????????????????????????? | | ?????????????????????????????????????????????????? | | ?????????????????????????????????????????????????? | | ?????????????????????????????????????????????????? | | ?????????????????????????????????????????????????? | | ??????????????# ?????##????????????????????????? | | ??????????????#""#???? #????????????????????????? | | ??????????????"""##??? #????????????????????????? | | ?????????????## ##? ##????????????????????????? | | ?????????????? ## #????????????????????????? | | ?????????????? #?????????????????????????? | | ?????????????? ??????????????????????????? | | ??????????????# ????????????????????????????? | | ?????????????## #?????????????????????????????? | | ###????????### #?????????????????????????????? | | #????????# #?????????????????????????????? | | #????????## #?????????????????????????????? | | ########## ##????#????????????????????????? | | ## # ### #????? ##??????????????????????? | | ##?## ##???? ###????????????????????? | | #???# ##???# #????????????????????? | | # # #??## #???######???????????????????? | | ########??# #####;Y;###??????????????????? | | ##??####???## ;;% [@## "#??????????????????? | | ##???# ###### #;######"# ???????????? | | ##????# ## &###??? # ????????? | | ###?????# "##?????# # # ?????????? | | ????????## #????????##??##???????????? | | ?????????# ##?????????????????????????? | | ?????????## ### ######??????????????????????????? | | ??????????####?###???????????????????????????????? | | ?????????????????????????????????????????????????? | | ?????????????????????????????????????????????????? | | ?????????????????????????????????????????????????? | | ?????????????????????????????????????????????????? | | ?????????????????????????????????????????????????? | | ?????????????????????????????????????????????????? | | ?????????????????????????????????????????????????? | | ?????????????????????????????????????????????????? | | ?????????????????????????????????????????????????? | | ?????????????????????????????????????????????????? | | ?????????????????????????????????????????????????? | | ?????????????????????????????????????????????????? | | ?????????????????????????????????????????????????? | | ?????????????????????????????????????????????????? | | | | | | | +----------------------------------------------------+ Best States ------------- Heat Dissipation 25 Energy Generation 14 Energy Capacity 250 Matter Stores 300 Matter Capacity 300 Sight Range 16 Terrain Scan Density 10 Evasion (%) 62 Item Schematics ----------------- None Robot Schematics ------------------ None Fabricated ------------ Nothing Repaired ---------- Mining Laser | 26% | -10/Materials Studied --------- None Alien Tech Used ----------------- None Achievements -------------- Do Not Disturb Release The Drones! Challenges ------------ None Game ------ Seed SiegePotentialBoomstick Manual? 0 Play Time 00:38:07 Cumulative 18.3 hours Start 2026.07.09 @ 19:23:00 End 2026.07.09 @ 20:06:30 Sessions 1 Manual Loads 0 Difficulty Rogue Special Mode None Game No. 26 Rogue 26 Adventurer 0 Explorer 0 Win Type - Total 0 Types 0/0/0/0/0/0/0/0/0/0 Lore% 18 Gallery% 15 Achievement% 15 Wizard Run 0 Options --------- Layout 1 ASCII 0 Keyboard 0 Movement Mouse Keybinds 0 Fullscreen 1 Font 18/SmallcapsGlow Map View 51x41 Zoom Use 0% Tactical HUD 0 Map Filters NONE Filters NONE Steam 1 RUN: 06c7bd0e-aed4-4b1e-a5e2-2fbdbe581439